fUST/lending_fUST_20260111
["ID","MTS","AMOUNT","RATE_DAILY","PERIOD"]
[401303490,1768119644946,500.0,8.471e-05,2]
[401303491,1768119645028,326.39994437,8.471e-05,2]
[401303492,1768119645116,12.92231855,8.471e-05,2]
[401303493,1768119645193,487.07768145,8.471e-05,2]
[401303494,1768119645289,500.0,8.471e-05,2]
[401303495,1768119645389,500.0,8.471e-05,2]
[401303496,1768119645475,500.0,8.471e-05,2]
[401303497,1768119645574,500.0,8.471e-05,2]
[401303498,1768119645748,500.0,8.471e-05,2]
[401303499,1768119646167,518.55535036,8.471e-05,2]
[401303500,1768119646332,518.55535036,8.471e-05,2]
[401303501,1768119646445,518.55535036,8.471e-05,2]
[401303502,1768119646581,518.55535036,8.471e-05,2]
[401303503,1768119646683,518.55535036,8.471e-05,2]
[401303504,1768119646778,518.55535036,8.471e-05,2]
[401303505,1768119646898,518.55535036,8.471e-05,2]
[401303506,1768119647017,518.55535036,8.471e-05,2]
[401303507,1768119647211,518.55535036,8.471e-05,2]
[401303508,1768119647297,518.55535036,8.471e-05,2]
[401303509,1768119647435,518.55535036,8.471e-05,2]
[401303510,1768119647564,518.55535036,8.471e-05,2]
[401303511,1768119653535,500.0,8.471e-05,2]
[401303512,1768119653653,290.26811423,8.471e-05,2]
[401303513,1768119653728,234.93222962,8.471e-05,2]
[401303514,1768119661599,500.0,8.471e-05,2]
[401303515,1768119661705,500.0,8.471e-05,2]
[401303516,1768119661794,500.0,8.471e-05,2]
[401303517,1768119661893,500.0,8.471e-05,2]
[401303518,1768119661977,572.74858418,8.471e-05,2]
[401303519,1768119662705,300.0,8.471e-05,2]
[401303520,1768119662785,300.0,8.471e-05,2]
[401303521,1768119669561,500.0,8.471e-05,2]
[401303522,1768119669675,500.0,8.471e-05,2]
[401303523,1768119669759,500.0,8.471e-05,2]
[401303524,1768119669871,500.0,8.471e-05,2]
[401303525,1768119669969,397.92204629,8.471e-05,2]
[401303526,1768119670348,500.0,8.471e-05,2]
[401303527,1768119679318,712.56673162,8.471e-05,2]
[401303528,1768119681725,500.0,8.471e-05,2]
[401303529,1768119681820,649.93190283,8.471e-05,2]
[401303530,1768119681909,500.0,8.471e-05,2]
[401303531,1768119681997,500.0,8.471e-05,2]
[401303532,1768119683988,500.0,8.471e-05,2]
[401303533,1768119684072,331.90850546,8.471e-05,2]
[401303534,1768119684141,168.09149454,8.471e-05,2]
[401303535,1768119684227,500.0,8.471e-05,2]
[401303536,1768119684315,500.0,8.471e-05,2]
[401303537,1768119684403,500.0,8.471e-05,2]
[401303538,1768119684490,500.0,8.471e-05,2]
[401303539,1768119684591,500.0,8.471e-05,2]
[401303540,1768119684697,500.0,8.471e-05,2]
[401303541,1768119684782,500.0,8.471e-05,2]
[401303542,1768119684863,200.0,8.471e-05,2]
[401303543,1768119684950,500.0,8.471e-05,2]
[401303544,1768119685029,500.0,8.471e-05,2]
[401303545,1768119685127,500.0,8.471e-05,2]
[401303546,1768119685208,500.0,8.471e-05,2]
[401303547,1768119685293,500.0,8.471e-05,2]
[401303548,1768119685374,500.0,8.471e-05,2]
[401303549,1768119685457,500.0,8.471e-05,2]
[401303550,1768119685533,500.0,8.471e-05,2]
[401303551,1768119685614,500.0,8.471e-05,2]
[401303552,1768119685695,500.0,8.471e-05,2]
[401303553,1768119685784,500.0,8.471e-05,2]
[401303554,1768119685866,500.0,8.471e-05,2]
[401303555,1768119685955,131.91850546,8.471e-05,2]
[401303556,1768119686024,368.08149454,8.471e-05,2]
[401303557,1768119686221,500.0,8.471e-05,2]
[401303558,1768119706130,261.876,8.302e-05,2]
[401303559,1768119706216,179.385,8.302e-05,2]
[401303560,1768119712995,500.0,8.471e-05,2]
[401303561,1768119714855,543.82656664,8.471e-05,2]
[401303562,1768119714951,543.82656664,8.471e-05,2]
[401303563,1768119715037,543.82656664,8.471e-05,2]
[401303564,1768119715122,543.82656664,8.471e-05,2]
[401303565,1768119715214,543.82656664,8.471e-05,2]
[401303566,1768119715304,543.82656664,8.471e-05,2]
[401303567,1768119715392,543.82656664,8.471e-05,2]
[401303568,1768119715496,543.82656664,8.471e-05,2]
[401303569,1768119715597,543.82656664,8.471e-05,2]
[401303570,1768119715688,543.82656664,8.471e-05,2]
[401303571,1768119715782,543.82656664,8.471e-05,2]
[401303572,1768119715880,543.82656664,8.471e-05,2]
[401303573,1768119715977,543.82656664,8.471e-05,2]
[401303574,1768119716081,543.82656664,8.471e-05,2]
[401303575,1768119716182,543.82656664,8.471e-05,2]
[401303576,1768119716281,33.26900586,8.471e-05,2]
[401303577,1768119716365,510.55756078,8.471e-05,2]
[401303578,1768119716465,543.82656664,8.471e-05,2]
[401303579,1768119716568,543.82656664,8.471e-05,2]
[401303580,1768119716674,543.82656664,8.471e-05,2]
[401303581,1768119716779,543.82656664,8.471e-05,2]
[401303582,1768119716879,543.82656664,8.471e-05,2]
[401303583,1768119716974,543.82656664,8.471e-05,2]
[401303584,1768119717068,543.82656664,8.471e-05,2]
[401303585,1768119717164,543.82656664,8.471e-05,2]
[401303586,1768119717257,543.82656664,8.471e-05,2]
[401303587,1768119717353,543.82656664,8.471e-05,2]
[401303588,1768119717451,543.82656664,8.471e-05,2]
[401303589,1768119717561,543.82656664,8.471e-05,2]
[401303590,1768119717665,543.82656664,8.471e-05,2]
[401303591,1768119717762,543.82656664,8.471e-05,2]
[401303592,1768119717860,543.82656664,8.471e-05,2]
[401303593,1768119717959,543.82656664,8.471e-05,2]
[401303594,1768119718197,543.82656664,8.471e-05,2]
[401303595,1768119718317,244.40080634,8.471e-05,2]
[401303596,1768119718414,299.4257603,8.471e-05,2]
[401303597,1768119718502,543.82656664,8.471e-05,2]
[401303598,1768119718592,543.82656664,8.471e-05,2]
[401303599,1768119718686,543.82656664,8.471e-05,2]
[401303600,1768119718770,543.82656664,8.471e-05,2]
[401303601,1768119718853,543.82656664,8.471e-05,2]
[401303602,1768119718937,543.82656664,8.471e-05,2]
[401303603,1768119719020,543.82656664,8.471e-05,2]
[401303604,1768119719103,543.82656664,8.471e-05,2]
[401303605,1768119719192,543.82656664,8.471e-05,2]
[401303606,1768119719276,543.82656664,8.471e-05,2]
[401303607,1768119719371,543.82656664,8.471e-05,2]
[401303608,1768119719458,543.82656664,8.471e-05,2]
[401303609,1768119719541,543.82656664,8.471e-05,2]
[401303610,1768119719630,543.82656664,8.471e-05,2]
[401303611,1768119719722,543.82656664,8.471e-05,2]
[401303612,1768119719828,543.82656664,8.471e-05,2]
[401303613,1768119719921,543.82656664,8.471e-05,2]
[401303614,1768119720013,455.53260682,8.471e-05,2]
[401303615,1768119720096,88.29395982,8.471e-05,2]
[401303616,1768119720206,1025.05,5.872e-05,2]
[401303617,1768119720317,2050.11,6.152e-05,2]
[401303618,1768119720427,3075.16,6.432e-05,2]
[401303619,1768119720525,3761.39604018,6.711e-05,2]
[401303620,1768119720615,338.81395982,6.711e-05,2]
[401303621,1768119720719,5125.27,6.991e-05,2]
[401303622,1768119721136,4535.92604018,7.271e-05,2]
[401303623,1768119721230,1614.39395982,7.271e-05,2]
[401303624,1768119721584,7175.38,7.55e-05,2]
[401303625,1768119721982,1210.23604018,7.83e-05,2]
[401303626,1768119722058,6990.19395982,7.83e-05,2]
[401303627,1768119722451,3009.81604018,8.11e-05,2]
[401303628,1768119722536,6215.66395982,8.11e-05,2]
[401303629,1768119722624,300.0,8.47e-05,2]
[401303630,1768119722869,3484.34604018,8.389e-05,2]
[401303631,1768119722949,6766.19395982,8.389e-05,2]
[401303632,1768119733568,220.94256763,8.372e-05,2]
[401303633,1768119749432,500.0,8.471e-05,2]
[401303634,1768119749508,205.82277449,8.471e-05,2]
[401303635,1768119756097,500.0,8.471e-05,2]
[401303636,1768119756185,500.0,8.471e-05,2]
[401303637,1768119756271,500.0,8.471e-05,2]
[401303638,1768119756352,500.0,8.471e-05,2]
[401303639,1768119756439,307.05069806,8.471e-05,2]
[401303640,1768119756515,192.94930194,8.471e-05,2]
[401303641,1768119756608,500.0,8.471e-05,2]
[401303642,1768119756699,500.0,8.471e-05,2]
[401303643,1768119756787,500.0,8.471e-05,2]
[401303644,1768119756871,500.0,8.471e-05,2]
[401303645,1768119756953,500.0,8.471e-05,2]
[401303646,1768119757036,500.0,8.471e-05,2]
[401303647,1768119757116,500.0,8.471e-05,2]
[401303648,1768119757210,500.0,8.471e-05,2]
[401303649,1768119757295,500.0,8.471e-05,2]
[401303650,1768119757378,500.0,8.471e-05,2]
[401303651,1768119757460,500.0,8.471e-05,2]
[401303652,1768119757546,500.0,8.471e-05,2]
[401303653,1768119757626,500.0,8.471e-05,2]
[401303654,1768119757703,500.0,8.471e-05,2]
[401303655,1768119757783,185.92816387,8.471e-05,2]
[401303656,1768119757859,500.0,8.471e-05,2]
[401303657,1768119757936,500.0,8.471e-05,2]
[401303658,1768119758014,500.0,8.471e-05,2]
[401303659,1768119758091,500.0,8.471e-05,2]
[401303660,1768119758172,500.0,8.471e-05,2]
[401303661,1768119758259,121.13253419,8.471e-05,2]
[401303662,1768119796322,1166.13,5.968e-05,2]
[401303663,1768119796740,2332.27,6.252e-05,2]
[401303664,1768119797138,3498.4,6.536e-05,2]
[401303665,1768119797539,3003.21,6.82e-05,2]
[401303666,1768119797606,1661.32,6.82e-05,2]
[401303667,1768119797955,5830.67,7.104e-05,2]
[401303668,1768119798488,2508.02,7.389e-05,2]
[401303669,1768119812599,-173.1966674,7.389e-05,2]
[401303670,1768119814097,-192.78,7.389e-05,2]
[401303671,1768119816139,-181.9,7.389e-05,2]
[401303672,1768119819467,-167.7565346,7.389e-05,2]
[401303673,1768119821562,-206.1657517,7.389e-05,2]
[401303674,1768119824293,-172.74084344,7.389e-05,2]
[401303675,1768119825282,-3394.24020286,7.389e-05,2]
[401303676,1768119826848,-300.8570889,7.673e-05,2]
[401303677,1768119828471,-178.51215727,7.673e-05,2]
[401303678,1768119830692,-207.38050303,7.673e-05,2]
[401303679,1768119833667,-177.15831312,7.673e-05,2]
[401303680,1768119835128,-548.79601148,7.673e-05,2]
[401303681,1768119836157,161.0,8.3e-07,2]
[401303682,1768119837381,161.0,8.3e-07,2]
[401303683,1768119838344,161.0,8.3e-07,2]
[401303684,1768119839436,161.0,8.3e-07,2]
[401303685,1768119840284,-493.53016989,7.673e-05,2]
[401303686,1768119840462,161.0,8.3e-07,2]
[401303687,1768119841492,161.0,8.3e-07,2]
[401303688,1768119841856,-212.60059896,7.673e-05,2]
[401303689,1768119842630,161.0,8.3e-07,2]
[401303690,1768119843818,161.0,8.3e-07,2]
[401303691,1768119846035,-300.0,7.673e-05,2]
[401303692,1768119847653,-151.02419318,7.673e-05,2]
[401303693,1768119849202,-243.0,7.673e-05,2]
[401303694,1768119851277,-243.0,7.673e-05,2]
[401303695,1768119856629,-185.82457809,7.673e-05,2]
[401303696,1768119858694,-309.82486322,7.673e-05,2]
[401303697,1768119860881,-222.17185254,7.673e-05,2]
[401303698,1768119863017,-276.94,7.673e-05,2]
[401303699,1768119865083,-284.912,7.673e-05,2]
[401303700,1768119866963,-378.44058564,7.673e-05,2]
[401303701,1768119869652,-300.0,7.824e-05,2]
[401303702,1768119869676,-284.19918596,7.825e-05,2]
[401303703,1768119871243,-15.80081404,7.825e-05,2]
[401303704,1768119871266,-140.16720813,7.825e-05,2]
[401303705,1768119874290,-159.83279187,7.825e-05,2]
[401303706,1768119874315,-41.15999194,7.825e-05,2]
[401303707,1768119875392,1030.17,5.858e-05,2]
[401303708,1768119875858,893.35959428,6.137e-05,2]
[401303709,1768119875921,1166.98040572,6.137e-05,2]
[401303710,1768119876325,3090.51,6.416e-05,2]
[401303711,1768119876738,4120.68,6.695e-05,2]
[401303712,1768119877242,1621.83959428,6.974e-05,2]
[401303713,1768119877303,3529.01040572,6.974e-05,2]
[401303714,1768119877569,6181.02,7.253e-05,2]
[401303715,1768119877599,-160.31787126,7.825e-05,2]
[401303716,1768119880325,-341.50000179,7.532e-05,2]
[401303717,1768119881876,-180.32183878,7.532e-05,2]
[401303718,1768119885259,-211.4232998,7.532e-05,2]
[401303719,1768119889923,-221.67868038,7.532e-05,2]
[401303720,1768119893819,-249.27944371,7.532e-05,2]
[401303721,1768119898193,-389.26616524,7.532e-05,2]
[401303722,1768119902002,-219.18533808,7.532e-05,2]
[401303723,1768119904123,-241.90987175,7.532e-05,2]
[401303724,1768119906252,-331.06491163,7.532e-05,2]
[401303725,1768119910826,-212.18080398,7.532e-05,2]
[401303726,1768119912413,-285.68175046,7.532e-05,2]
[401303727,1768119913903,-258.97,7.532e-05,2]
[401303728,1768119920081,-167.60787051,7.532e-05,2]
[401303729,1768119922892,-300.0,7.532e-05,2]
[401303730,1768119927784,-163.04901972,7.532e-05,2]
[401303731,1768119930891,-572.70705181,7.532e-05,2]
[401303732,1768119933891,-154.3066349,7.532e-05,2]
[401303733,1768119935417,-500.0,7.532e-05,2]
[401303734,1768119938131,-160.77133971,7.532e-05,2]
[401303735,1768119942302,-210.73383476,7.532e-05,2]
[401303737,1768119944287,-315.73926649,7.532e-05,2]
[401303739,1768119946418,-479.00513455,7.532e-05,2]
[401303741,1768119951971,-256.35516362,7.81e-05,2]
[401303742,1768119952728,289.97959428,5.84e-05,2]
[401303743,1768119952801,755.07040572,5.84e-05,2]
[401303744,1768119953109,2090.09,6.119e-05,2]
[401303745,1768119953526,3135.14,6.397e-05,2]
[401303746,1768119953961,4019.70959428,6.675e-05,2]
[401303747,1768119954032,160.47040572,6.675e-05,2]
[401303749,1768119954441,5225.23,6.953e-05,2]
[401303750,1768119954932,4614.30959428,7.231e-05,2]
[401303751,1768119955000,1655.97040572,7.231e-05,2]
[401303757,1768119971514,-219.87787271,7.509e-05,2]
[401303758,1768119973894,-154.23780499,7.509e-05,2]
[401303759,1768119976535,-213.65659245,7.509e-05,2]
[401303760,1768119978594,-334.65554086,7.509e-05,2]
[401303762,1768119982480,-286.53438863,7.509e-05,2]
[401303764,1768119985605,-319.35056567,7.509e-05,2]
[401303766,1768119990243,-184.26073351,7.509e-05,2]
[401303768,1768119992858,-435.41858747,7.509e-05,2]
[401303770,1768119994945,-332.55268569,7.509e-05,2]
[401303772,1768119998138,-264.66431513,7.509e-05,2]
[401303773,1768120000334,-364.58141253,7.509e-05,2]
[401303775,1768120005709,-725.59583089,7.509e-05,2]
[401303776,1768120007622,-539.84214112,7.509e-05,2]
[401303777,1768120010579,-295.81390801,7.509e-05,2]
[401303778,1768120013598,-335.02197347,7.509e-05,2]
[401303779,1768120019913,-193.16145965,7.509e-05,2]
[401303780,1768120022005,-167.65623426,7.509e-05,2]
[401303781,1768120023596,-208.255707,7.509e-05,2]
[401303782,1768120024065,1594.9753422,6.812e-05,2]
[401303783,1768120028264,-165.14753977,7.648e-05,2]
[401303784,1768120030064,-174.104,7.648e-05,2]
[401303785,1768120031141,1016.13,6.024e-05,2]
[401303786,1768120031590,2032.27,6.311e-05,2]
[401303787,1768120032006,3048.4,6.597e-05,2]
[401303788,1768120032425,652.26425208,6.884e-05,2]
[401303789,1768120032495,3412.26574792,6.884e-05,2]
[401303790,1768120032848,5080.67,7.171e-05,2]
[401303791,1768120036988,-159.22780638,7.458e-05,2]
[401303792,1768120039105,-257.06635604,7.458e-05,2]
[401303793,1768120041757,-500.0,7.458e-05,2]
[401303794,1768120044448,-153.6883592,7.458e-05,2]
[401303795,1768120046641,-200.0,7.458e-05,2]
[401303796,1768120048227,-300.0,7.458e-05,2]
[401303797,1768120049860,-305.395364,7.458e-05,2]
[401303798,1768120054437,-155.11869083,7.458e-05,2]
[401303799,1768120055969,-302.0646316,7.458e-05,2]
[401303800,1768120057045,170.53681,3.474e-05,2]
[401303801,1768120057446,170.53681,5.142e-05,2]
[401303802,1768120057635,170.53681,6.811e-05,2]
[401303803,1768120057953,-363.12976869,7.458e-05,2]
[401303813,1768120062087,-154.94649835,7.458e-05,2]
[401303814,1768120065005,-326.60626936,7.458e-05,2]
[401303815,1768120066523,-414.62947799,7.458e-05,2]
[401303816,1768120070060,-463.40412149,7.458e-05,2]
[401303817,1768120072265,-402.2333988,7.458e-05,2]
[401303818,1768120073792,-240.27105052,7.458e-05,2]
[401303819,1768120078958,-311.5942483,7.458e-05,2]
[401303820,1768120081302,-479.82470118,7.458e-05,2]
[401303821,1768120087819,-212.06698349,7.458e-05,2]
[401303825,1768120112422,915.78,5.998e-05,2]
[401303826,1768120112905,79.68382208,6.284e-05,2]
[401303827,1768120112978,1751.87617792,6.284e-05,2]
[401303828,1768120113631,2747.34,6.57e-05,2]
[401303829,1768120114081,-91.36321148,7.648e-05,2]
[401303830,1768120114123,555.8325482,6.855e-05,2]
[401303831,1768120114205,3107.2874518,6.855e-05,2]
[401303832,1768120114389,2393.50637028,7.141e-05,2]
[401303833,1768120114474,2185.39362972,7.141e-05,2]
[401303834,1768120116228,5900.06,7.3e-05,2]
[401303835,1768120118144,-349.95663736,7.426e-05,2]
[401303836,1768120119653,-163.45608618,7.426e-05,2]
[401303837,1768120121176,-449.23066933,7.426e-05,2]
[401303838,1768120123207,-155.04761584,7.426e-05,2]
[401303839,1768120125426,-172.74084344,7.426e-05,2]
[401303840,1768120130174,-166.74711218,7.426e-05,2]
[401303841,1768120134379,-284.67294533,7.426e-05,2]
[401303842,1768120137367,-293.90217923,7.426e-05,2]
[401303843,1768120139539,-181.77,7.426e-05,2]
[401303844,1768120142830,-275.15430135,7.426e-05,2]
[401303845,1768120144861,-309.10288287,7.426e-05,2]
[401303846,1768120147008,-194.65023604,7.426e-05,2]
[401303847,1768120150041,-164.46405627,7.426e-05,2]
[401303848,1768120151244,204.6718036,6.816e-05,2]
[401303849,1768120152224,-203.20803785,7.426e-05,2]
[401303850,1768120153768,-214.21744863,7.426e-05,2]
[401303851,1768120158384,-159.37405164,7.426e-05,2]
[401303852,1768120159860,-259.73378036,7.426e-05,2]
[401303853,1768120162024,-249.49,7.426e-05,2]
[401303854,1768120166045,-300.0,7.426e-05,2]
[401303855,1768120169237,-157.87416908,7.426e-05,2]
[401303856,1768120171480,-162.62594836,7.426e-05,2]
[401303857,1768120175663,-331.54572381,7.426e-05,2]
[401303858,1768120178330,-156.89941992,7.426e-05,2]
[401303859,1768120178923,-138.81585493,7.426e-05,2]
[401303860,1768120182518,-219.37892197,7.712e-05,2]
[401303861,1768120184051,-319.81305002,7.712e-05,2]
[401303862,1768120186729,-300.0,7.724e-05,2]
[401303864,1768120189916,-174.21371744,7.724e-05,2]
[401303865,1768120191249,725.22,6.608e-05,2]
[401303866,1768120191430,-154.36641924,7.724e-05,2]
[401303867,1768120191722,1450.44,6.923e-05,2]
[401303868,1768120192208,2175.66,7.238e-05,2]
[401303869,1768120193534,-258.54246207,7.552e-05,2]
[401303870,1768120195600,-274.45753793,7.552e-05,2]
[401303871,1768120197163,-2367.88,7.552e-05,2]
[401303872,1768120204410,175.84,5e-05,2]
[401303873,1768120204979,175.84,5.5e-05,2]
[401303874,1768120205538,175.84,6e-05,2]
[401303875,1768120206147,175.84,6.5e-05,2]
[401303876,1768120212731,-175.84,7.1e-05,2]
[401303877,1768120212809,-175.84,7.6e-05,2]
[401303878,1768120212891,-300.0,7.723e-05,2]
[401303879,1768120212966,-300.0,7.723e-05,2]
[401303880,1768120213037,-300.0,7.723e-05,2]
[401303881,1768120213107,-243.0,7.723e-05,2]
[401303882,1768120213180,-1200.0,7.723e-05,2]
[401303883,1768120213253,-529.0,7.723e-05,2]
[401303884,1768120217046,-199.81028461,7.724e-05,2]
[401303885,1768120218465,-404.7304009,7.724e-05,2]
[401303886,1768120221961,-280.07401346,7.724e-05,2]
[401303887,1768120224759,-157.17890079,7.724e-05,2]
[401303888,1768120230757,-412.92885453,7.724e-05,2]
[401303897,1768120231994,500.0,7.723e-05,2]
[401303900,1768120232109,500.0,7.723e-05,2]
[401303912,1768120232520,500.0,7.723e-05,2]
[401303913,1768120232829,500.0,7.723e-05,2]
[401303914,1768120233138,492.44648733,7.723e-05,2]
[401303915,1768120233383,500.0,7.723e-05,2]
[401303916,1768120233440,-614.35401849,7.724e-05,2]
[401303917,1768120233568,500.0,7.723e-05,2]
[401303918,1768120233688,60.20351267,7.723e-05,2]
[401303919,1768120233760,439.79648733,7.723e-05,2]
[401303920,1768120233913,500.0,7.723e-05,2]
[401303921,1768120234000,500.0,7.723e-05,2]
[401303922,1768120234200,500.0,7.723e-05,2]
[401303923,1768120234281,500.0,7.723e-05,2]
[401303924,1768120234317,-168.85366272,7.724e-05,2]
[401303925,1768120234407,500.0,7.723e-05,2]
[401303926,1768120234494,500.0,7.723e-05,2]
[401303927,1768120234582,500.0,7.723e-05,2]
[401303928,1768120234682,500.0,7.723e-05,2]
[401303929,1768120234761,500.0,7.723e-05,2]
[401303930,1768120234842,563.21270826,7.723e-05,2]
[401303931,1768120234922,500.0,7.723e-05,2]
[401303932,1768120235004,500.0,7.723e-05,2]
[401303933,1768120235084,500.0,7.723e-05,2]
[401303934,1768120235168,500.0,7.723e-05,2]
[401303935,1768120235260,500.0,7.723e-05,2]
[401303936,1768120235353,182.94930459,7.723e-05,2]
[401303937,1768120235575,500.0,7.723e-05,2]
[401303938,1768120235661,500.0,7.723e-05,2]
[401303939,1768120235749,500.0,7.723e-05,2]
[401303940,1768120235834,314.05149982,7.723e-05,2]
[401303941,1768120235912,185.94850018,7.723e-05,2]
[401303942,1768120235995,500.0,7.723e-05,2]
[401303943,1768120236086,500.0,7.723e-05,2]
[401303944,1768120236185,650.0,7.723e-05,2]
[401303945,1768120236272,500.0,7.723e-05,2]
[401303946,1768120236389,500.0,7.723e-05,2]
[401303947,1768120236481,7164.06149982,7.723e-05,2]
[401303948,1768120236547,2835.93850018,7.723e-05,2]
[401303949,1768120236656,500.0,7.723e-05,2]
[401303950,1768120236799,500.0,7.723e-05,2]
[401303951,1768120236897,500.0,7.723e-05,2]
[401303960,1768120238930,-243.03863179,7.724e-05,2]
[401303961,1768120238955,-996890.45109603,7.724e-05,2]
[401303962,1768120238965,-151.0,7.724e-05,2]
[401303963,1768120238975,-151.0,7.724e-05,2]
[401303964,1768120238985,-3588.20550989,7.786e-05,2]
[401303965,1768120238995,-50000.0,7.824e-05,2]
[401303966,1768120239006,-98.5221368,7.825e-05,2]
[401303967,1768120239016,-300.0,7.825e-05,2]
[401303968,1768120239026,-300.0,7.825e-05,2]
[401303969,1768120239036,-300.0,7.825e-05,2]
[401303970,1768120239046,-300.0,7.825e-05,2]
[401303971,1768120239057,-300.0,7.825e-05,2]
[401303972,1768120239067,-300.0,7.825e-05,2]
[401303973,1768120239077,-300.0,7.825e-05,2]
[401303974,1768120239087,-300.0,7.825e-05,2]
[401303975,1768120239097,-300.0,7.825e-05,2]
[401303976,1768120239107,-300.0,7.825e-05,2]
[401303977,1768120239117,-300.0,7.825e-05,2]
[401303978,1768120239126,-300.0,7.825e-05,2]
[401303979,1768120239135,-3626.1,7.867e-05,2]
[401303980,1768120239145,-175.84,8.1e-05,2]
[401303981,1768120239155,-600.0,8.115e-05,2]
[401303982,1768120239165,-4351.32,8.182e-05,2]
[401303983,1768120239175,-500.0,8.219e-05,2]
[401303984,1768120239184,-178.37869619,8.219e-05,2]
[401303985,1768120239193,-500.0,8.219e-05,2]
[401303986,1768120239203,-500.0,8.493e-05,2]
[401303987,1768120239212,-354.0,8.495e-05,2]
[401303988,1768120239222,-420.0,8.495e-05,2]
[401303989,1768120239231,-534.0,8.495e-05,2]
[401303990,1768120239241,-5076.54,8.496e-05,2]
[401303991,1768120239250,-578.7,8.6e-05,2]
[401303992,1768120239260,-175.84,8.6e-05,2]
[401303993,1768120239269,-369.72,8.64e-05,2]
[401303994,1768120239278,-500.0,8.767e-05,2]
[401303995,1768120239288,-5801.76,8.811e-05,2]
[401303996,1768120239298,-369.72,8.914e-05,2]
[401303997,1768120239307,-720.0,8.927e-05,2]
[401303998,1768120239321,-500.0,9.041e-05,2]
[401303999,1768120239330,-578.7,9.1e-05,2]
[401304000,1768120239339,-175.84,9.1e-05,2]
[401304001,1768120239348,-6526.98,9.126e-05,2]
[401304002,1768120239359,-369.72,9.188e-05,2]
[401304003,1768120239368,-500.0,9.315e-05,2]
[401304004,1768120239378,-587.0,9.345e-05,2]
[401304005,1768120239389,-7252.19,9.44e-05,2]
[401304006,1768120239399,-369.72,9.462e-05,2]
[401304007,1768120239408,-500.0,9.589e-05,2]
[401304008,1768120239418,-578.7,9.6e-05,2]
[401304009,1768120239428,-175.84,9.6e-05,2]
[401304010,1768120239438,-508.12540647,9.648e-05,2]
[401304011,1768120239447,-500.0,9.726e-05,2]
[401304012,1768120239457,-2601.0,9.726e-05,2]
[401304013,1768120239467,-283.8218406,9.726e-05,2]
[401304014,1768120239477,-500.0,9.726e-05,2]
[401304015,1768120239487,-190.86169873,9.726e-05,2]
[401304016,1768120239496,-171.51692933,9.726e-05,2]
[401304017,1768120239506,-369.75,9.736e-05,2]
[401304018,1768120239515,-34394.63643184,9.76e-05,2]
[401304019,1768120239525,-864.0,9.819e-05,2]
[401304020,1768120239534,-500.0,9.863e-05,2]
[401304021,1768120239543,-2601.0,9.863e-05,2]
[401304022,1768120239553,-500.0,9.863e-05,2]
[401304023,1768120239562,-500.0,9.863e-05,2]
[401304024,1768120239572,-163.14839871,0.0001,2]
[401304025,1768120239581,-500.0,0.0001,2]
[401304026,1768120239591,-2601.0,0.0001,2]
[401304027,1768120239600,-500.0,0.0001,2]
[401304028,1768120239609,-153.90472729,0.0001,2]
[401304029,1768120239620,-151.0,0.0001,2]
[401304030,1768120239630,-151.0,0.0001,2]
[401304031,1768120239639,-151.0,0.0001,2]
[401304032,1768120239650,-151.0,0.0001,2]
[401304033,1768120239660,-151.0,0.0001,2]
[401304034,1768120239669,-151.0,0.0001,2]
[401304035,1768120239679,-151.0,0.0001,2]
[401304036,1768120239689,-151.0,0.0001,2]
[401304037,1768120239698,-151.0,0.0001,2]
[401304038,1768120239708,-151.0,0.0001,2]
[401304039,1768120239717,-151.0,0.0001,2]
[401304040,1768120239726,-151.0,0.0001,2]
[401304041,1768120239736,-151.0,0.0001,2]
[401304042,1768120239746,-151.0,0.0001,2]
[401304043,1768120239755,-151.0,0.0001,2]
[401304044,1768120239765,-151.0,0.0001,2]
[401304045,1768120239775,-154.07167593,0.0001,2]
[401304046,1768120239784,-578.7,0.000101,2]
[401304047,1768120239794,-175.84,0.000101,2]